Cogmind - Beta 14 @@@ ROGUE MODE // 2024.09.24 @ 01:16:22 Player: Rq Result: Destroyed by G-50 Soldier with Heavy Laser Performance ------------- Evolutions (2) 1000 Regions Visited (7) 1400 Robots Destroyed (98) 490 Value Destroyed (3161) 3161 Prototype IDs (0) 0 Alien Tech Used (0) 0 Bonus (1880) 1880 TOTAL SCORE: 7931 Bonus ------- High Alert Combat Kills 638 Follower Combat Kills 42 Entered Garrisons 200 Used RIF Installer 1000 Cogmind --------- Core Integrity 0/550 Matter 59/300 Energy 98/100 System Corruption 4% Temperature Cool (25) Movement Rolling (135) Ox3 Location -8/Materials Parts ------- > --- POWER (1) -------- (None) > --- PROPULSION (3) --- Armored Wheel > --- UTILITY (4) ------ High-capacity Storage Unit Relay Coupler [Grunt] (2) Relay Coupler [Hunter] (6) > --- WEAPON (3) ------- Autogun Maul > --- INVENTORY (20) --- Light Ion Engine Light Ion Engine Light Nuclear Core Light Treads Armored Wheel Armored Wheel High-capacity Storage Unit High-capacity Matter Pod (200) High-capacity Matter Pod (200) Improved Signal Interpreter Light Armor Plating Hardened Light Armor Plating Hardened Light Armor Plating Relay Coupler [Swarmer] (56) Relay Coupler [Sentry] (19) Relay Coupler [Sentry] (26) Relay Coupler [Sentry] (29) High-powered Tractor Beam Remote Datajack Remote Datajack Peak State ------------ > --- POWER ------------ Micro Nuclear Core > --- PROPULSION ------- Armored Wheel Armored Wheel Armored Wheel > --- UTILITY ---------- High-capacity Storage Unit Hacking Suite Relay Coupler [Grunt] Relay Coupler [Hunter] > --- WEAPON ----------- High-powered Shotgun Remote Datajack Maul > --- INVENTORY -------- Light Ion Engine Light Ion Engine Light Nuclear Core Light Treads Armored Wheel Armored Wheel High-capacity Storage Unit High-capacity Matter Pod High-capacity Matter Pod Improved Signal Interpreter Light Armor Plating Hardened Light Armor Plating Hardened Light Armor Plating Relay Coupler [Swarmer] Relay Coupler [Sentry] Relay Coupler [Sentry] Relay Coupler [Sentry] Tractor Beam High-powered Shotgun Remote Datajack [Rating: 35] Favorites ----------- Power Ion Engine Engine Ion Engine Power Core Light Nuclear Core Propulsion Light Treads Treads Light Treads Leg Aluminum Leg Wheel Armored Wheel Utility High-capacity Storage Unit Device Improved Heat Sink Storage High-capacity Storage Unit Hackware Hacking Suite Protection Light Armor Plating Weapon Improved Light Cannon Energy Gun Spread Laser Ballistic Gun Heavy Assault Rifle Ballistic Cannon Improved Light Cannon Launcher Rocket Launcher Special Weapon Remote Datajack Impact Weapon Maul Slashing Weapon Mining Claw Build | -11 -10 -10 -10 -9 -8 -8 -8 ------- Run | Yrd Mat Min Exi Min Mat Gar Mat Slots Evolved 4 | . . . . . 4 . . Power . | . . . . . . . . Propulsion 1 | . . . . . 1 . . Utility 2 | . . . . . 2 . . Weapon 1 | . . . . . 1 . . Parts Attached 73 | 4 11 4 . 1 4 34 15 Power 9 | . 1 1 . 1 . 6 . Engine 5 | . . 1 . 1 . 3 . Core 4 | . 1 . . . . 3 . Reactor . | . . . . . . . . Propulsion 20 | 2 3 1 . . 1 10 3 Treads 17 | 2 3 1 . . 1 10 . Leg . | . . . . . . . . Wheel 3 | . . . . . . . 3 Hover . | . . . . . . . . Flight . | . . . . . . . . Utility 13 | 1 3 1 . . 2 3 3 Device 5 | 1 . 1 . . . 3 . Storage 2 | . 2 . . . . . . Processor . | . . . . . . . . Hackware 4 | . . . . . 2 . 2 Protection 2 | . 1 . . . . . 1 Artifact . | . . . . . . . . Weapon 31 | 1 4 1 . . 1 15 9 Energy Gun 6 | 1 . . . . 1 4 . Energy Cannon . | . . . . . . . . Ballistic Gun 10 | . 1 . . . . 4 5 Ballistic Cannon 5 | . 3 1 . . . 1 . Launcher 3 | . . . . . . 3 . Special Weapon 3 | . . . . . . . 3 Impact Weapon 1 | . . . . . . . 1 Slashing Weapon 3 | . . . . . . 3 . Piercing Weapon . | . . . . . . . . Special Melee Weapon . | . . . . . . . . Unidentified Prototypes . | . . . . . . . . Parts Lost 27 | . 1 3 . . 1 16 6 Power 6 | . 1 1 . . . 3 1 Propulsion 8 | . . 1 . . . 5 2 Utility 4 | . . 1 . . . 2 1 Weapon 9 | . . . . . 1 6 2 Highest Loss Streak 6 | . 1 2 . . 1 6 4 To Critical Strikes . | . . . . . . . . Average Slot Usage (%) 99 | . 99 99 100 100 94 98 98 Engine 8 | . 12 10 14 14 9 4 . Core 2 | . 1 2 . . . 4 8 Treads 25 | . 28 28 28 28 27 26 3 Wheel 2 | . . . . . . . 22 Device 8 | . . 13 14 14 9 10 3 Storage 11 | . 14 14 14 14 9 9 9 Hackware 7 | . . . . . 18 15 23 Protection 2 | . 13 . . . . . . Energy Gun 4 | . 6 . . . 9 9 . Ballistic Gun 3 | . 1 . . . . 8 7 Ballistic Cannon 15 | . 20 28 28 28 13 1 3 Slashing Weapon 1 | . . . . . . 5 2 Peak Build Rating 35 | 9 13 15 13 13 22 27 35 Average Rating 17 | 6 10 13 13 13 20 23 32 On Entrance 14 | 6 9 13 13 13 13 20 26 Naked Turns . | . . . . . . . . Heaviest Build 61 | 15 56 56 52 54 57 58 61 Greatest Support 60 | 40 40 40 40 40 60 60 60 Greatest Overweight (x) 4 | . 1 1 1 1 . 2 4 Average Overweight (x) . | . . 1 1 1 . . . Largest Inventory Capacity 20 | 8 20 20 20 20 20 20 20 Average Capacity 19 | 8 16 20 20 20 20 20 20 Most Carried 20 | 6 20 20 19 20 19 20 20 Average Carried 16 | 2 12 18 19 19 16 16 19 Final Capacity 20 | 8 20 20 20 20 20 20 20 Final Carried 20 | 2 20 19 19 20 16 20 20 Class Distribution -------------------- 58% | Mutant 17% | Scavenger-Mutant 10% | Bothacker-Mutant 7% | Scavenger-Gunner 4% | Hacker-Gunner Dominant Class ---------------- Mutant | -10/Materials Mutant | -10/Mines Mutant | -10/Exiles Mutant | -9/Mines Hacker-Mutant | -8/Materials Scavenger-Mutant | -8/Garrison Bothacker-Mutant | -8/Materials Resources | -11 -10 -10 -10 -9 -8 -8 -8 ----------- Run | Yrd Mat Min Exi Min Mat Gar Mat Matter Collected 2229 | 234 666 287 . 26 95 773 148 Remotely . | . . . . . . . . Salvage Created 2579 | 138 855 113 . . 66 1166 241 Parts 159 | 10 55 10 . . 11 59 14 Haulers Intercepted 2 | . 2 . . . . . . Recyclers Shooed 3 | . 2 1 . . . . . Parts Field Recycled . | . . . . . . . . Retrieved Matter . | . . . . . . . . Parts Self-Destructed . | . . . . . . . . Prevented . | . . . . . . . . Kills | -11 -10 -10 -10 -9 -8 -8 -8 ------- Run | Yrd Mat Min Exi Min Mat Gar Mat Combat Hostiles Destroyed 78 | . 18 8 . 1 8 35 8 Melee 1 | . . . . . . . 1 Guns 32 | . 3 . . . 3 20 6 Cannons 30 | . 15 8 . 1 5 1 . AOE 14 | . . . . . . 14 . Classes Destroyed 15 | 2 7 3 . . . 3 . Worker 6 | . 4 1 . . . . 1 Builder 1 | . . 1 . . . . . Tunneler 3 | 3 . . . . . . . Hauler 2 | . 2 . . . . . . Recycler 4 | 1 2 1 . . . . . Mechanic 1 | . 1 . . . . . . Operator 4 | . 4 . . . . . . Watcher 3 | . 2 . . . . . 1 Swarmer 21 | . 5 3 . 1 8 . 4 Cutter 3 | . . . . . . 3 . Grunt 29 | . 13 . . . . 12 4 Sentry 14 | . . . . . . 14 . Demolisher 1 | . . 1 . . . . . Programmer 6 | . . . . . . 6 . Assembled 4 | . . 4 . . . . . Best Kill Streak 11 | 2 5 4 . 1 8 11 4 Combat Bots Only 11 | . 4 4 . 1 8 11 4 Max Kills in Single Turn 2 | 1 2 2 . 1 1 2 1 Gunslinging . | . . . . . . . . Exploded 2 | . . . . . . 2 . Melee 1 | . . . . . . . 1 Uniques/NPCs Destroyed . | . . . . . . . . Combat | -11 -10 -10 -10 -9 -8 -8 -8 -------- Run | Yrd Mat Min Exi Min Mat Gar Mat Hostile Shots Fired 444 | . 73 47 . 3 35 183 103 Missed 123 | . 23 12 . 1 6 54 27 Damage Taken 4349 | . 538 461 . 16 221 2036 1077 Core 681 | . 63 59 . . 34 329 196 Absorbed by Shields . | . . . . . . . . Core Remaining (%) 75 | 100 . . . 51 . . . Volleys Fired 232 | 6 71 18 . 2 10 87 38 Largest 3 | 2 2 2 . 2 3 3 2 Hottest 157 | 100 100 78 . 78 143 157 50 Shots Fired 434 | 12 142 36 . 4 25 162 53 Gun 237 | 12 50 . . . 10 129 36 Cannon 155 | . 92 36 . 4 15 7 1 Launcher 26 | . . . . . . 26 . Special 16 | . . . . . . . 16 Kinetic 272 | . 109 36 . 4 15 71 37 Thermal 120 | 12 33 . . . 10 65 . Explosive 26 | . . . . . . 26 . Electromagnetic . | . . . . . . . . Robot Hit Streak 17 | 5 17 6 . 1 4 11 10 Robot Miss Streak 6 | 2 4 3 . 2 4 6 5 Penetration Max . | . . . . . . . . Secondary Targets 5 | . . . . . . 4 1 Max Gunslinging Chain 1 | . . . . . . 1 1 Shots Hit Robots 273 | 7 85 17 . 2 15 102 45 Core Hits 185 | 5 43 11 . 1 13 96 16 Critical Kills 1 | . . . . . . . 1 Critical Parts Destroyed 2 | . . . . . . 1 1 Critical Strikes 7 | 1 . . . . . 4 2 Burn 4 | 1 . . . . . 3 . Destroy 2 | . . . . . . 1 1 Smash 1 | . . . . . . . 1 Melee Attacks 42 | . . . . . . 32 10 Impact 10 | . . . . . . . 10 Slashing 32 | . . . . . . 32 . Piercing . | . . . . . . . . Sneak Attacks 1 | . . . . . . . 1 Combat Hostiles . | . . . . . . . . Follow-up Attacks . | . . . . . . . . Damage Inflicted 6271 | 85 1598 449 . 57 264 3049 769 Guns 2563 | 85 397 . . . 46 1460 575 Cannons 1940 | . 1174 442 . 51 218 55 . Explosions 1534 | . . . . . . 1534 . Melee 194 | . . . . . . . 194 Ramming 40 | . 27 7 . 6 . . . Kinetic 3276 | . 1245 442 . 51 218 745 575 Thermal 1227 | 85 326 . . . 46 770 . Explosive 1534 | . . . . . . 1534 . Electromagnetic . | . . . . . . . . Impact 194 | . . . . . . . 194 Slashing . | . . . . . . . . Piercing . | . . . . . . . . Highest Corruption 4 | . . . . . . 4 4 Average Corruption 3 | . . . . . . 3 4 Corruption Purged . | . . . . . . . . Corruption Blocked . | . . . . . . . . Effects 51 | . . . . . . 32 19 Message Errors 16 | . . . . . . 13 3 Matter Fused 7 | . . . . . . 2 5 Heat Flow Errors 5 | . . . . . . 2 3 Energy Discharges 8 | . . . . . . 4 4 Parts Rejected 1 | . . . . . . 1 . Parts Fused 3 | . . . . . . 2 1 Data Loss (minor) 4 | . . . . . . 3 1 Misfires 3 | . . . . . . 1 2 Alerts 3 | . . . . . . 3 . Weapon Failures 1 | . . . . . . 1 . Overload Shots . | . . . . . . . . Overflow Damage 133 | . 42 . . 1 19 28 43 Projectiles 63 | . 42 . . 1 19 1 . Explosions 27 | . . . . . . 27 . Melee 43 | . . . . . . . 43 Knockbacks 22 | . 13 6 . 1 2 . . Impact . | . . . . . . . . Kinetic 22 | . 13 6 . 1 2 . . Secondary . | . . . . . . . . Self-Inflicted Damage 96 | . . . . . . 96 . Shots 3 | . . . . . . 3 . Rammed 8 | . 4 3 . 1 . . . Targets Rammed 9 | . 5 3 . 1 . . . Kicked . | . . . . . . . . Crushed 1 | . 1 . . . . . . Highest Temperature 363 | 78 363 74 . . 84 262 217 Average Temperature 70 | 33 85 35 . . 46 55 41 Received Heat Transfer 1647 | . 216 180 . . . 684 567 Effects 1 | . . . . . . 1 . Energy Bleed 1 | . . . . . . 1 . Siege Activations . | . . . . . . . . Robots Corrupted 2 | . . . . . . . 2 Combat Hostiles 1 | . . . . . . . 1 Parts Fried 2 | . . . . . . . 2 Impact Corruptions 3 | . . . . . . . 3 Robots Melted . | . . . . . . . . Combat Hostiles . | . . . . . . . . Parts Melted 8 | 1 3 . . . 1 3 . Heat Transferred 2751 | 333 962 . . . 60 1396 . Parts Sabotaged . | . . . . . . . . Parts Stolen . | . . . . . . . . Parts Stripped . | . . . . . . . . Power Chain Reactions . | . . . . . . . . Alert | -11 -10 -10 -10 -9 -8 -8 -8 ------- Run | Yrd Mat Min Exi Min Mat Gar Mat Peak Influence 1771 | 20 353 215 . 164 247 1771 863 Initial 863 | . 13 137 . . . 160 863 Average 424 | 9 191 54 . 34 140 955 707 Maximum Alert Level 5 | . 1 1 . . 1 5 3 Low Security (%) 43 | 100 42 82 . 100 50 3 . Level 1 17 | . 57 17 . . 49 2 . Level 2 9 | . . . . . . 20 30 Level 3 21 | . . . . . . 46 69 Level 4 5 | . . . . . . 17 . Level 5 2 | . . . . . . 8 . High Security . | . . . . . . . . Max Security . | . . . . . . . . Squads Dispatched 11 | . 5 . . . 2 . 4 Investigation 2 | . 1 . . . . . 1 Extermination . | . . . . . . . . Reinforcement 6 | . 4 . . . . . 2 Assault 1 | . . . . . . . 1 Garrison 2 | . . . . . 2 . . Intercept . | . . . . . . . . Searches Triggered . | . . . . . . . . Construction Impeded . | . . . . . . . . Haulers Reinforced . | . . . . . . . . Active Scanning Responses . | . . . . . . . . Cargo Convoy Interrupts . | . . . . . . . . Stealth | -11 -10 -10 -10 -9 -8 -8 -8 --------- Run | Yrd Mat Min Exi Min Mat Gar Mat Distress Signals 4 | . 1 1 . . . . 2 Communications Jammed . | . . . . . . . . Distress Signals . | . . . . . . . . Times Spotted 144 | . 36 16 . 4 12 35 41 Peak Tracking Total 9 | . 3 9 . 4 7 5 9 Tactical Retreats 13 | . 1 . . 1 2 . 9 Traps | -11 -10 -10 -10 -9 -8 -8 -8 ------- Run | Yrd Mat Min Exi Min Mat Gar Mat Traps Triggered 3 | . . . . . . 2 1 Indirectly . | . . . . . . . . Trap Hack Attempts . | . . . . . . . . Triggered . | . . . . . . . . Disarmed . | . . . . . . . . Reprogrammed . | . . . . . . . . Reused . | . . . . . . . . Traps Extracted . | . . . . . . . . Installed . | . . . . . . . . Triggered . | . . . . . . . . Machines | -11 -10 -10 -10 -9 -8 -8 -8 ---------- Run | Yrd Mat Min Exi Min Mat Gar Mat Machines Disabled 6 | . 2 . . . 1 2 1 Max in Single Turn 1 | . 1 . . . 1 1 1 Garrison Relay 2 | . . . . . . 2 . Machines Repaired . | . . . . . . . . Machines Dismantled . | . . . . . . . . Machines Sabotaged . | . . . . . . . . Overloaded Fab Kills . | . . . . . . . . Hacking | -11 -10 -10 -10 -9 -8 -8 -8 --------- Run | Yrd Mat Min Exi Min Mat Gar Mat Machines Accessed 17 | . 7 . . 1 3 3 3 Terminals 14 | . 5 . . 1 2 3 3 Fabricators . | . . . . . . . . Repair Stations 1 | . 1 . . . . . . Recycling Units 1 | . 1 . . . . . . Scanalyzers . | . . . . . . . . Garrison Access 1 | . . . . . 1 . . Total Hacks 39 | . 18 . . 2 6 6 7 Successful 17 | . 10 . . 1 3 2 1 Failed 22 | . 8 . . 1 3 4 6 Catastrophic 3 | . 1 . . . 1 . 1 Database Lockouts . | . . . . . . . . Manual 25 | . 11 . . 2 5 . 7 Terminals 35 | . 15 . . 2 5 6 7 Fabricators . | . . . . . . . . Repair Stations 2 | . 2 . . . . . . Recycling Units 1 | . 1 . . . . . . Scanalyzers . | . . . . . . . . Garrison Access 1 | . . . . . 1 . . Terminal Hacks 13 | . 7 . . 1 2 2 1 Robot Analysis 7 | . 4 . . 1 2 . . Emergency Access Points 1 | . . . . . . 1 . Unreport Threat 1 | . . . . . . . 1 Locate Traps 3 | . 3 . . . . . . Security Stations 1 | . . . . . . 1 . Fabricator Hacks . | . . . . . . . . Repair Station Hacks 1 | . 1 . . . . . . Scan Component 1 | . 1 . . . . . . Recycling Unit Hacks . | . . . . . . . . Scanalyzer . | . . . . . . . . Garrison Access Hacks 1 | . . . . . 1 . . Unlock Access 1 | . . . . . 1 . . Unauthorized Hacks 2 | . 2 . . . . . . Terminals 1 | . 1 . . . . . . Botnet 1 | . 1 . . . . . . Fabricators . | . . . . . . . . Repair Stations . | . . . . . . . . Recycling Units 1 | . 1 . . . . . . Tunnel 1 | . 1 . . . . . . Scanalyzers . | . . . . . . . . Garrison Access . | . . . . . . . . Data Cores Recovered 1 | . 1 . . . . . . Used 1 | . 1 . . . . . . Hacking Detections 13 | . 5 . . 1 2 2 3 Full Trace Events 1 | . . . . . . 1 . Feedback Events 1 | . . . . . . 1 . Hackware Fried 1 | . . . . . . 1 . Feedback Blocked . | . . . . . . . . Robot Schematics Acquired . | . . . . . . . . Robots Built . | . . . . . . . . Authchips . | . . . . . . . . Time . | . . . . . . . . Total Robot Build Rating . | . . . . . . . . Part Schematics Acquired . | . . . . . . . . Parts Built . | . . . . . . . . Authchips . | . . . . . . . . Time . | . . . . . . . . Total Part Build Rating . | . . . . . . . . Parts Repaired . | . . . . . . . . Time . | . . . . . . . . Parts Recycled . | . . . . . . . . Recycled Matter . | . . . . . . . . Retrieved Matter . | . . . . . . . . Retrieved Components . | . . . . . . . . Parts Scanalyzed . | . . . . . . . . Part Schematics Acquired . | . . . . . . . . Parts Damaged . | . . . . . . . . Bothacking | -11 -10 -10 -10 -9 -8 -8 -8 ------------ Run | Yrd Mat Min Exi Min Mat Gar Mat Used RIF Installer 2 | . . . . . . 2 . Program Shield 1 | . . . . . . 1 . Robots Hacked 7 | . . . . . . . 7 Non-combat . | . . . . . . . . Combat 7 | . . . . . . . 7 Robot Hacks Applied 11 | . . . . . . . 11 parse_system 1 | . . . . . . . 1 broadcast_data 1 | . . . . . . . 1 overload_power 1 | . . . . . . . 1 disable_weapons 3 | . . . . . . . 3 reboot_system 1 | . . . . . . . 1 go_dormant 3 | . . . . . . . 3 formatsys_high 1 | . . . . . . . 1 Relay Couplers Released 10 | . . . . . . 10 . Machine Destruction 10 | . . . . . . 10 . Attached 2 | . . . . . . . 2 Fabnet Peak Effective % . | . . . . . . . . Robots Rewired . | . . . . . . . . Allies Hacked . | . . . . . . . . Hacks Repelled . | . . . . . . . . Allies | -11 -10 -10 -10 -9 -8 -8 -8 -------- Run | Yrd Mat Min Exi Min Mat Gar Mat Total Allies 4 | . . 3 . . . . 1 Largest Group 3 | . . 3 3 3 1 . 1 Highest-Rated Group 40 | . . 40 40 40 16 . 16 Highest-Rated Ally 16 | . . 16 16 16 16 . 16 Total Orders . | . . . . . . . . Ally Attacks 30 | . . . . 25 4 . 1 Total Damage 210 | . . . . 166 28 . 16 Kills 6 | . . . . 6 . . . Allies Corrupted . | . . . . . . . . Allies Melted . | . . . . . . . . Intel | -11 -10 -10 -10 -9 -8 -8 -8 ------- Run | Yrd Mat Min Exi Min Mat Gar Mat Robot Analysis Total 7 | . 4 . . 1 2 . . Derelict Logs Recovered 3 | . . 2 . 1 . . . Drone Launches . | . . . . . . . . Drone Recoveries . | . . . . . . . . Exploration | -11 -10 -10 -10 -9 -8 -8 -8 ------------- Run | Yrd Mat Min Exi Min Mat Gar Mat Turns Passed 9543 | 92 1954 1702 423 1438 209 2791 934 Spaces Moved 4468 | 40 849 659 172 592 105 1475 576 Core . | . . . . . . . . Treads 3975 | 40 849 659 172 592 105 1475 83 Legs . | . . . . . . . . Wheels 493 | . . . . . . . 493 Hover . | . . . . . . . . Flight . | . . . . . . . . Fastest Speed 105 | 160 160 240 240 240 160 160 105 Average Speed 183 | 160 177 240 240 240 160 161 113 Slowest Speed 320 | 160 240 240 240 240 160 320 160 Overloaded Moves . | . . . . . . . . Propulsion Burnouts . | . . . . . . . . Robots Hopped . | . . . . . . . . Cave-ins Triggered . | . . . . . . . . Exploration Rate (%) 64 | 4 99 99 58 100 15 91 52 Regions Visited 7 Branch Regions 3 Pre-discovered Areas 2 | . 1 1 . . . . . Known Exits Taken 1 | . . . . . 1 . . Unknown Exits Taken 5 | 1 1 1 1 1 . . . Scrap Searched 2 | . . 1 . 1 . . . Spaces Dug 11 | . . . . . . 7 4 Terrain Destroyed 75 | . 3 6 . . . 62 4 Melee 4 | . . . . . . . 4 Projectile 9 | . 3 6 . . . . . AOE 62 | . . . . . . 62 . Terrain Rammed . | . . . . . . . . Walls Destroyed . | . . . . . . . . Machines Disabled . | . . . . . . . . Actions | -11 -10 -10 -10 -9 -8 -8 -8 --------- Run | Yrd Mat Min Exi Min Mat Gar Mat Total 5342 | 58 1158 742 183 605 124 1676 796 Wait 431 | 5 188 51 12 8 5 22 140 Move 4461 | 39 848 658 171 591 105 1473 576 Hop . | . . . . . . . . Pick Up 56 | . 23 5 . 1 . 21 6 Fast Attach 16 | 1 3 . . . . 7 5 Attach 29 | 3 1 3 . . 4 16 2 Detach . | . . . . . . . . Swap 28 | . 7 1 . 1 . 11 8 Drop 38 | 4 12 3 . 1 . 7 11 Fire 232 | 6 71 18 . 2 10 87 38 Melee 42 | . . . . . . 32 10 Ram . | . . . . . . . . Kick . | . . . . . . . . Crush 9 | . 5 3 . 1 . . . Escape Stasis . | . . . . . . . . Rewire . | . . . . . . . . Trap . | . . . . . . . . Miscellaneous . | . . . . . . . . Route ------- -11/Scrapyard -10/Materials (discovered 4 exits: [*Mat x3] / [*Min]) -10/Mines (discovered 3 exits: [*Mat x2] / [*Exi]) -10/Exiles -9/Mines (discovered 2 exits: *Mat x2) -8/Materials (discovered 2 exits: Sto / Gar) -8/Garrison (discovered 3 exits: *Mat x3) -8/Materials History --------- Turn | Location | Event 7 | -11/Scrapyard | Discovered new exit (range 1) 93 | -11/Scrapyard | Entered Materials 309 | -10/Materials | Build established: Mutant 756 | -10/Materials | Discovered new exit (range 5) 912 | -10/Materials | Discovered new exit (range 11) 1119 | -10/Materials | Discovered new exit (range 16) 1494 | -10/Materials | Discovered new exit (range 12) 2047 | -10/Materials | Entered Mines 2168 | -10/Mines | Discovered new exit (range 14) 2333 | -10/Mines | Assembled infested the area 2727 | -10/Mines | Learned location of Mines (-9) 2753 | -10/Mines | Found a hidden stash of uninstalled traps 2933 | -10/Mines | Deemed a non-threat by the Exiles lab entrance 2933 | -10/Mines | Discovered new exit (range 5) 3123 | -10/Mines | Discovered new exit (range 8) 3258 | -10/Mines | Assisted by bots powering up and referring to "LRC-V3" 3377 | -10/Mines | Received a Rocket Launcher from a helpful Derelict 3455 | -10/Mines | Learned Materials garrison access intel 3749 | -10/Mines | Entered Exiles 3749 | -10/Exiles | Accompanied by 3 allies 3813 | -10/Exiles | Met 8R-AWN 3851 | -10/Exiles | Met EX-HEX 3923 | -10/Exiles | Met EX-BIN 3950 | -10/Exiles | Met EX-DEC 4137 | -10/Exiles | Discovered new exit (range 12) 4172 | -10/Exiles | Entered Mines 4172 | -9/Mines | Accompanied by 3 allies 4193 | -9/Mines | Met a Derelict bent on vengeance 5183 | -9/Mines | Discovered new exit (range 12) 5397 | -9/Mines | Discovered new exit (range 14) 5610 | -9/Mines | Entered Materials 5610 | -8/Materials | Accompanied by 1 ally 5610 | -8/Materials | Evolved 4 slots: Propulsion x1, Utility x2, Weapon x1 5611 | -8/Materials | Identified exit to Storage 5612 | -8/Materials | Loaded intel: 1 garrison access location 5696 | -8/Materials | Garrison activated, responded to threat 5739 | -8/Materials | Destroyed 8 combat bots 5819 | -8/Materials | Identified exit to Garrison 5819 | -8/Materials | Entered Garrison 5921 | -8/Garrison | Triggered checkpoint 5990 | -8/Garrison | Triggered checkpoint 5992 | -8/Garrison | Triggered checkpoint 6063 | -8/Garrison | Triggered checkpoint 6072 | -8/Garrison | Destroyed 11 combat bots 6105 | -8/Garrison | Build established: Hacker-Gunner 6169 | -8/Garrison | Triggered checkpoint 6212 | -8/Garrison | Lost 6 parts (1p2n1u2w) 6267 | -8/Garrison | Discovered new exit (range 8) 6419 | -8/Garrison | Triggered checkpoint 6421 | -8/Garrison | Build established: Scavenger-Gunner 6505 | -8/Garrison | Discovered new exit (range 12) 6854 | -8/Garrison | Build established: Scavenger-Mutant 7045 | -8/Garrison | Triggered checkpoint 7072 | -8/Garrison | Discovered new exit (range 15) 7138 | -8/Garrison | Core integrity fell below 50% 7367 | -8/Garrison | Lost 4 parts (2n2w) 7407 | -8/Garrison | Triggered checkpoint 7879 | -8/Garrison | Learned Materials security intel 7953 | -8/Garrison | Hacking Suite fried by hacking feedback 8119 | -8/Garrison | Garrison Relay disabled 8171 | -8/Garrison | Lost 3 parts (1p2w) 8282 | -8/Garrison | Installed Relay Interface Framework 8564 | -8/Garrison | Expanded RIF knowledge: Program Shield 8610 | -8/Garrison | Entered Materials 8813 | -8/Materials | Build established: Bothacker-Mutant 9294 | -8/Materials | Core integrity fell below 20% 9410 | -8/Materials | First assault squad dispatched 9544 | -8/Materials | Destroyed by G-50 Soldier with Heavy Laser Last Messages --------------- 09482_ G-47 Trooper unfolds itself. 09482_ B-36 Bruiser unfolds itself. 09482_ G-47 Trooper unfolds itself. 09483_ MU0IP|QKXJ5MG%D>|E74GILJ9YLT,VO|2B8 09498_ System corrupted: Matter fused (-9). 09516_ Mic. Nuclear Core destroyed. 09516_ Critical hit (Burn: +37). 09522_ Jacked G-50 Soldier... >>reboot_system Initiating full reboot, ETC: 18. 09527_ G-50 Soldier system offline. 09531_ Hadron Collector disabled. 09533_ Critical hit (Burn: +37). 09537_ Arm. Wheel destroyed. 09539_ Critical hit (Burn: +37). 09540_ G-50 Soldier reactivates. 09540_ Hacking Suite destroyed. 09541_ G-47 Trooper destroyed. 09541_ Switching to secondary target: G-50 Soldier. 09544_ Hpw. Shotgun destroyed. Map ----- +----------------------------------------------------+ | ?????????????## ##???????????????? | | ############## #???????????????? | | #???????????????? | | T +???????????????? | | #???????????????? | | ##########"### #???????????????? | | ????# ## ##???????????????? | | ?#### "" "# #????????????????? | | # """ "# ###??????????????? | | " # """ "# #T######?????????? | | " # """ [## ######????? | | " # """ +% #????? | | # !#* = #????? | | # ! # %= #????? | | [[/ # =+! #????? | | [// #######+##### ######## #????? | | [// #?????# #???# #??????# #????? | | #?????# #####+####???# #????? | | ]] #?????# + ] #???# ####????? | | #####??####### #???# #???????? | | ??????? #??# """ #???# #???????? | | ?#????? #??# """""#???# #???????? | | ?# """ !#??# """""#???# #???????? | | ?# """ #??# """""#???# #???????? | | ?# #??# """ #####g####????? | | ?# """ #??# ## @g #???? | | ?# """ #??# ## ] #???? | | ?? """ #??# ! ##"" =i #???? | | ???? ????# =[* ##"""%g #???? | | ????##+##########"#####""" #???? | | ????# "%" %[ #""" ! #???? | | ????# " # #???? | | ??#####/##+######+## / #???? | | ??# # # # #???? | | ??# """ # """ # ##########???? | | ??#! "R" # """"" # #?????????? | | ??# " " # """"" # #?????????? | | ??# #! """"" ###+###?????????? | | ??# # """ # ??????????? | | ??######## ]# """#????????? | | ?????????# = # """#????????? | | ?????????########### """#????????? | | ???????????????????# #????????? | | ???????????????????# = #????????? | | ???????????????????########????????? | | ???????????????????????????????????? | | ???????????????????????????????????? | | ???????????????????????????????????? | | ???????????????????????????????????? | | | +----------------------------------------------------+ Best States ------------- Heat Dissipation 59 Energy Generation 15 Energy Capacity 265 Matter Stores 300 Matter Capacity 300 Sight Range 16 Terrain Scan Range 16 Terrain Scan Density 10 Armor Coverage 150 Evasion (%) 40 Recoil Reduction 3 Offensive Hacking 20 Relay Coupler Types 2 Relay Coupler Value 55 Item Schematics ----------------- None Robot Schematics ------------------ None Fabricated ------------ Nothing Alien Tech Used ----------------- None Achievements -------------- None Challenges ------------ None Game ------ Seed VariableTargetLegs Manual? 0 Play Time 00:53:11 Cumulative 158.7 hours Start 2024.09.23 @ 19:08:05 End 2024.09.24 @ 01:16:22 Sessions 3 Manual Loads 0 Difficulty Rogue Special Mode None Game No. 210 Rogue 210 Adventurer 0 Explorer 0 Win Type - Total 1 Types 1/0/0/0/0/0/0/0/0 Lore% 51 Gallery% 62 Achievement% 50 Wizard Run 0 Options --------- Layout 0 ASCII 0 Keyboard 0 Movement Mouse Keybinds 1 Fullscreen 2 Font 18/TerminusBold Map View 76x50 Zoom Use 0% Tactical HUD 1 Map Filters NONE Filters NONE Steam 0 RUN: 1e8c16af-af15-479e-a4cf-dce588e467d4